Cogmind - Beta 16.1 @@@ ROGUE MODE // 2026.02.21 @ 16:01:01 Player: MrFartsburg Result: Destroyed by S-27 Virus with Autogun Performance ------------- Evolutions (3) 1500 Regions Visited (6) 1200 Robots Destroyed (41) 205 Value Destroyed (1068) 1068 Prototype IDs (3) 60 Alien Tech Used (0) 0 Bonus (609) 609 TOTAL SCORE: 4642 Bonus ------- Follower Combat Kills 609 Cogmind --------- Core Integrity 0/700 Matter 300/300 Energy 100/100 System Corruption 9% Temperature Cool (0) Movement Core (50) Location -7/Lower Caves Parts ------- > --- POWER (2) -------- (None) > --- PROPULSION (4) --- (None) > --- UTILITY (4) ------ (None) > --- WEAPON (3) ------- (None) > --- INVENTORY (5) ---- (None) Peak State ------------ > --- POWER ------------ Deuterium Engine Deuterium Engine > --- PROPULSION ------- Light Treads Improved Treads Armored Treads Advanced Treads > --- UTILITY ---------- Improved Light Armor Plating Reflective Plating Hacking Suite Dynamic Insulation System > --- WEAPON ----------- Heavy Laser Advanced Assault Cannon Mini Assault Cannon > --- INVENTORY -------- Aluminum Leg Compact Matter Pod Beam Rifle Heavy Particle Cannon Axe [Rating: 42] Favorites ----------- Power Deuterium Engine Engine Deuterium Engine Power Core Light Nuclear Core Propulsion Light Treads Treads Light Treads Leg Carbon-fiber Leg Hover Unit Airjet Flight Unit Flight Unit Utility Hacking Suite Device Dynamic Insulation System Storage Small Storage Unit Processor Terrain Scan Processor Hackware Hacking Suite Protection Reflective Plating Weapon Mini Assault Cannon Energy Gun Heavy Laser Energy Cannon Heavy Particle Cannon Ballistic Gun Light Assault Rifle Ballistic Cannon Mini Assault Cannon Launcher Grenade Launcher Slashing Weapon Axe Build | -11 -10 -9 -8 -8 -7 -7 ------- Run | Yrd Mat Mat Mat Sto Fac Low Slots Evolved 6 | . . 2 2 . 2 . Power 1 | . . 1 . . . . Propulsion 2 | . . . 1 . 1 . Utility 2 | . . 1 . . 1 . Weapon 1 | . . . 1 . . . Parts Attached 46 | 6 2 4 10 14 6 4 Power 8 | 1 . 1 . 5 . 1 Engine 7 | 1 . 1 . 5 . . Core 1 | . . . . . . 1 Reactor . | . . . . . . . Propulsion 12 | 2 . 2 3 3 2 . Treads 8 | 2 . . 2 3 1 . Leg 1 | . . . . . 1 . Wheel . | . . . . . . . Hover 2 | . . 2 . . . . Flight 1 | . . . 1 . . . Utility 14 | 1 2 . 3 4 3 1 Device 4 | . 1 . 1 1 . 1 Storage 2 | 1 . . . . 1 . Processor 3 | . 1 . 1 . 1 . Hackware 1 | . . . . 1 . . Protection 4 | . . . 1 2 1 . Artifact . | . . . . . . . Weapon 12 | 2 . 1 4 2 1 2 Energy Gun 6 | 1 . 1 2 1 . 1 Energy Cannon 1 | . . . 1 . . . Ballistic Gun 1 | 1 . . . . . . Ballistic Cannon 2 | . . . . 1 1 . Launcher 1 | . . . 1 . . . Special Weapon . | . . . . . . . Impact Weapon . | . . . . . . . Slashing Weapon 1 | . . . . . . 1 Piercing Weapon . | . . . . . . . Special Melee Weapon . | . . . . . . . Unidentified Prototypes 1 | . . . . 1 . . Parts Lost 26 | . 1 1 5 . 2 17 Power 4 | . 1 . . . . 3 Propulsion 7 | . . . 2 . 1 4 Utility 7 | . . 1 1 . 1 4 Weapon 8 | . . . 2 . . 6 Highest Loss Streak 14 | . 1 1 5 . 2 14 To Critical Strikes 2 | . . . . . . 2 Average Backups 4 | 2 5 5 6 4 4 2 Power . | . 1 . . . . . Propulsion . | 1 2 . . . . . Utility 1 | . . 1 3 1 1 . Weapon 2 | . 2 3 2 2 2 2 Tool/Special . | . . . . . . . Unused Backups 6 | . . 3 . 2 1 . Power . | . . . . . . . Propulsion 3 | . . 2 . . 1 . Utility 1 | . . . . 1 . . Weapon 2 | . . 1 . 1 . . Tool/Special . | . . . . . . . Average Slot Usage (%) 87 | . 83 87 71 94 93 78 Engine 10 | . 3 11 6 14 15 7 Treads 20 | . 28 2 . 25 28 16 Leg 1 | . . . . . . 5 Hover 2 | . . 20 10 . . . Device 7 | . 6 10 5 8 6 4 Storage 4 | . 14 11 9 . . . Processor 4 | . 2 11 8 2 . 5 Hackware 4 | . . . . 6 7 6 Protection 5 | . . . 2 8 9 5 Energy Gun 9 | . 14 11 15 9 7 5 Energy Cannon 4 | . . . 4 9 4 . Ballistic Gun 3 | . 14 11 3 . . . Ballistic Cannon 6 | . . . . 7 9 12 Peak Build Rating 42 | 6 6 15 23 35 42 42 Average Rating 24 | 4 5 13 16 29 38 33 On Entrance 16 | . 6 6 14 14 35 41 Avg Prop Armor Cover (%) 3 | . . . 2 . . 3 Naked Turns 58 | . . . . . . 58 Heaviest Build 41 | 12 12 15 25 38 41 39 Greatest Support 85 | 40 40 40 40 65 85 62 Greatest Overweight (x) 5 | . . . 5 . . 3 Average Overweight (x) . | . . . 1 . . . Largest Inventory Capacity 8 | 8 8 8 8 8 5 5 Average Capacity 5 | 6 8 8 8 5 5 5 Most Carried 8 | 6 8 8 8 5 5 5 Average Carried 4 | 2 5 4 5 4 4 2 Final Capacity 8 | 8 8 8 8 5 5 5 Final Carried 8 | 4 8 7 6 5 4 . Class Distribution -------------------- 36% | Commander-Tank 29% | Mutant 18% | Scavenger-Tank 10% | Tank 4% | Gunner Dominant Class ---------------- Mutant | -10/Materials Mutant | -9/Materials Gunner | -8/Materials Commander-Tank | -8/Storage Commander-Tank | -7/Factory Scavenger-Tank | -7/Lower Caves Resources | -11 -10 -9 -8 -8 -7 -7 ----------- Run | Yrd Mat Mat Mat Sto Fac Low Matter Collected 1330 | 223 79 130 72 432 197 197 Remotely . | . . . . . . . Salvage Created 1283 | . 227 146 211 185 303 211 Parts 77 | . 12 16 14 12 10 13 Haulers Intercepted 1 | . . . . 1 . . Recyclers Shooed 2 | . 1 1 . . . . Parts Field Recycled . | . . . . . . . Retrieved Matter . | . . . . . . . Parts Self-Destructed 13 | . . . . . . 13 Prevented . | . . . . . . . Parts Restored . | . . . . . . . Kills | -11 -10 -9 -8 -8 -7 -7 ------- Run | Yrd Mat Mat Mat Sto Fac Low Combat Hostiles Destroyed 32 | . 7 6 5 1 6 7 Melee 2 | . . . . . . 2 Guns 17 | . 7 6 2 1 . 1 Cannons 13 | . . . 3 . 6 4 Classes Destroyed 10 | . 3 1 1 3 2 . Builder 2 | . . . . 1 1 . Hauler 1 | . . . . 1 . . Recycler 2 | . . . 1 . 1 . Operator 1 | . . . . 1 . . Watcher 3 | . 1 . . 2 . . Swarmer 16 | . 3 5 3 . 2 3 Grunt 10 | . 4 . . 1 2 3 Brawler 2 | . . . . . 1 1 Duelist 1 | . . . . . 1 . Sentry 3 | . . 1 2 . . . Best Kill Streak 5 | . 4 5 3 2 3 3 Combat Bots Only 5 | . 4 5 2 1 2 3 Max Kills in Single Turn 2 | . 1 1 2 2 1 1 Gunslinging . | . . . . . . . Exploded . | . . . . . . . Melee 1 | . . . . . . 1 Uniques/NPCs Destroyed . | . . . . . . . Combat | -11 -10 -9 -8 -8 -7 -7 -------- Run | Yrd Mat Mat Mat Sto Fac Low Hostile Shots Fired 419 | . 51 24 58 12 54 220 Missed 115 | . 9 9 18 2 16 61 Hits 304 | . 42 15 40 10 38 159 Melee 14 | . . . . . 9 5 Projectile 290 | . 42 15 40 10 29 154 Critical Strikes 11 | . . 1 3 2 . 5 Damage Taken 3820 | . 433 169 423 207 712 1876 Core 994 | . 85 63 102 35 112 597 Absorbed by Shields 145 | . . . . . . 145 Ignored by Resistances 6 | . . . . 6 . . Core Remaining (%) 81 | 100 66 84 . 75 . . Volleys Fired 94 | . 28 14 7 13 12 20 Largest 3 | . 2 2 3 3 3 3 Hottest 184 | . 60 70 175 184 184 184 Shots Fired 224 | . 56 28 14 39 34 53 Gun 133 | . 56 28 10 13 10 16 Cannon 90 | . . . 3 26 24 37 Launcher 1 | . . . 1 . . . Special . | . . . . . . . Kinetic 111 | . 28 14 . 13 20 36 Thermal 94 | . 28 . 9 26 14 17 Explosive 1 | . . . 1 . . . Electromagnetic 18 | . . 14 4 . . . Robot Hit Streak 9 | . 7 4 5 4 5 9 Robot Miss Streak 6 | . 6 3 2 4 2 4 Penetration Max . | . . . . . . . Secondary Targets 7 | . 3 3 1 . . . Max Gunslinging Chain 1 | . 1 1 1 . . . Shots Hit Robots 130 | . 32 14 9 20 21 34 Core Hits 62 | . 16 9 9 9 6 13 Critical Kills . | . . . . . . . Critical Parts Destroyed 2 | . 2 . . . . . Critical Strikes 6 | . 2 . . 1 1 2 Burn 1 | . . . . 1 . . Destroy 2 | . 2 . . . . . Blast 3 | . . . . . 1 2 Melee Attacks 5 | . . . . . . 5 Impact . | . . . . . . . Slashing 5 | . . . . . . 5 Piercing . | . . . . . . . Sneak Attacks . | . . . . . . . Combat Hostiles . | . . . . . . . Follow-up Attacks . | . . . . . . . Damage Inflicted 2666 | . 351 184 226 496 537 872 Guns 1077 | . 344 166 106 153 136 172 Cannons 1391 | . . . 81 334 396 580 Explosions 32 | . . . 32 . . . Melee 110 | . . . . . . 110 Ramming 56 | . 7 18 7 9 5 10 Kinetic 1218 | . 151 57 . 134 321 555 Thermal 1095 | . 193 . 141 353 211 197 Explosive 32 | . . . 32 . . . Electromagnetic 155 | . . 109 46 . . . Impact . | . . . . . . . Slashing 110 | . . . . . . 110 Piercing . | . . . . . . . Highest Corruption 9 | . . . . . . 9 Average Corruption 7 | . . . . . . 7 Corruption Purged . | . . . . . . . Corruption Blocked . | . . . . . . . Effects 2 | . . . . . . 2 Matter Fused 1 | . . . . . . 1 Data Loss (minor) 1 | . . . . . . 1 Overload Shots . | . . . . . . . Overflow Damage . | . . . . . . . Projectiles . | . . . . . . . Explosions . | . . . . . . . Melee . | . . . . . . . Knockbacks 5 | . . . . 2 . 3 Impact 1 | . . . . 1 . . Kinetic 4 | . . . . 1 . 3 Secondary . | . . . . . . . Self-Inflicted Damage 16 | . . 9 2 . . 5 Shots . | . . . . . . . Rammed 17 | . 5 2 6 2 . 2 Targets Rammed 18 | . 5 2 6 2 1 2 Kicked . | . . . . . . . Crushed 1 | . . . . . 1 . Highest Temperature 543 | . 159 26 93 468 543 459 Average Temperature 152 | . 77 9 35 145 214 202 Received Heat Transfer 662 | . 204 36 108 81 63 170 Effects 16 | . . . . 1 10 5 Shutdowns 5 | . . . . 1 3 1 Energy Bleed 1 | . . . . . . 1 Interference 7 | . . . . . 4 3 Matter Decay 1 | . . . . . 1 . Short Circuit 1 | . . . . . 1 . Damage (minor) 1 | . . . . . 1 . Siege Activations . | . . . . . . . Martial Activations . | . . . . . . . Shielding Activations . | . . . . . . . Robots Disrupted . | . . . . . . . Combat Hostiles . | . . . . . . . Robots Corrupted . | . . . . . . . Combat Hostiles . | . . . . . . . Parts Fried 1 | . . 1 . . . . Impact Corruptions . | . . . . . . . Robots Melted . | . . . . . . . Combat Hostiles . | . . . . . . . Parts Melted 1 | . . . . 1 . . Heat Transferred 2090 | . 425 . 259 666 370 370 Parts Sabotaged . | . . . . . . . Parts Stolen . | . . . . . . . Parts Stripped . | . . . . . . . Power Chain Reactions . | . . . . . . . Alert | -11 -10 -9 -8 -8 -7 -7 ------- Run | Yrd Mat Mat Mat Sto Fac Low Maximum Alert Level 1 | . . . . 1 1 . Low Security (%) 88 | 100 100 100 100 79 85 . Level 1 11 | . . . . 20 14 . Level 2 . | . . . . . . . Level 3 . | . . . . . . . Level 4 . | . . . . . . . Level 5 . | . . . . . . . High Security . | . . . . . . . Max Security . | . . . . . . . Peak Influence 323 | . 120 115 93 323 232 . Initial 144 | . . . 42 30 144 . Average 93 | . 51 60 25 114 171 . Influence Increases 1762 | . 177 182 173 686 339 205 Destroy 0b10 Robot/C 1000 | . 140 120 100 280 220 140 Destroy 0b10 Robot/NC 55 | . 5 . 5 35 10 . Destroy Leader 268 | . 32 30 30 116 40 20 Allied During Kill 285 | . . . . 233 52 . Successful Hack 24 | . . 17 . 7 . . Disable Machine 15 | . . . . . 15 . Destroy Structure 25 | . . . 8 15 2 . Lose Combat Pursuer 90 | . . 15 30 . . 45 Influence Decreases 1701 | . 177 80 202 442 443 357 Entered New Map 355 | . . . 60 43 173 79 Time Decay 1076 | . 167 70 112 339 190 198 Lost Part 150 | . 10 10 30 . 20 80 Lost Ally 120 | . . . . 60 60 . Squads Dispatched 7 | . 2 . 1 2 2 . Investigation 4 | . 1 . . 2 1 . Extermination 1 | . . . . . 1 . Reinforcement 2 | . 1 . 1 . . . Assault . | . . . . . . . Garrison . | . . . . . . . Intercept . | . . . . . . . Searches Triggered . | . . . . . . . Construction Impeded . | . . . . . . . Haulers Reinforced . | . . . . . . . Active Scanning Responses . | . . . . . . . Cargo Convoy Interrupts . | . . . . . . . Stealth | -11 -10 -9 -8 -8 -7 -7 --------- Run | Yrd Mat Mat Mat Sto Fac Low Distress Signals 4 | . 1 . 1 1 1 . Communications Jammed . | . . . . . . . Distress Signals . | . . . . . . . Times Spotted 82 | . 15 12 11 14 13 17 Peak Tracking Total 9 | . 4 4 5 3 5 9 Tactical Retreats 4 | . . 1 1 . . 2 Traps | -11 -10 -9 -8 -8 -7 -7 ------- Run | Yrd Mat Mat Mat Sto Fac Low Traps Triggered 3 | . . . . 2 1 . Indirectly . | . . . . . . . Trap Hack Attempts . | . . . . . . . Triggered . | . . . . . . . Disarmed . | . . . . . . . Reprogrammed . | . . . . . . . Reused . | . . . . . . . Traps Extracted . | . . . . . . . Installed . | . . . . . . . Triggered . | . . . . . . . Machines | -11 -10 -9 -8 -8 -7 -7 ---------- Run | Yrd Mat Mat Mat Sto Fac Low Machines Disabled 1 | . . . . . 1 . Max in Single Turn 1 | . . . . . 1 . Machines Repaired . | . . . . . . . Machines Dismantled . | . . . . . . . Machines Sabotaged . | . . . . . . . Overloaded Fab Kills . | . . . . . . . Hacking | -11 -10 -9 -8 -8 -7 -7 --------- Run | Yrd Mat Mat Mat Sto Fac Low Machines Accessed 8 | . 1 1 . 5 1 . Terminals 7 | . 1 1 . 5 . . Fabricators . | . . . . . . . Repair Stations . | . . . . . . . Recycling Units . | . . . . . . . Scanalyzers 1 | . . . . . 1 . Garrison Access . | . . . . . . . Total Hacks 25 | . 5 3 . 14 3 . Successful 13 | . 1 3 . 9 . . Failed 12 | . 4 . . 5 3 . Catastrophic 1 | . . . . 1 . . Database Lockouts . | . . . . . . . Manual . | . . . . . . . Terminals 22 | . 5 3 . 14 . . Fabricators . | . . . . . . . Repair Stations . | . . . . . . . Recycling Units . | . . . . . . . Scanalyzers 3 | . . . . . 3 . Garrison Access . | . . . . . . . Terminal Hacks 13 | . 1 3 . 9 . . Record 6 | . . . . 6 . . Part Schematic 1 | . . . . 1 . . Robot Analysis 1 | . 1 . . . . . Prototype ID Bank 1 | . . 1 . . . . Open Door 1 | . . . . 1 . . Alert Level 1 | . . . . 1 . . Reinforcement Status 1 | . . 1 . . . . Registered Components 1 | . . 1 . . . . Fabricator Hacks . | . . . . . . . Repair Station Hacks . | . . . . . . . Recycling Unit Hacks . | . . . . . . . Scanalyzer . | . . . . . . . Garrison Access Hacks . | . . . . . . . Unauthorized Hacks . | . . . . . . . Terminals . | . . . . . . . Fabricators . | . . . . . . . Repair Stations . | . . . . . . . Recycling Units . | . . . . . . . Scanalyzers . | . . . . . . . Garrison Access . | . . . . . . . Data Cores Recovered 2 | . . . . 2 . . Used . | . . . . . . . Hacking Detections 8 | . 1 1 . 5 1 . Full Trace Events 4 | . 1 . . 2 1 . Feedback Events . | . . . . . . . Feedback Blocked . | . . . . . . . Robot Schematics Acquired . | . . . . . . . Robots Built . | . . . . . . . Authchips . | . . . . . . . Time . | . . . . . . . Total Robot Build Rating . | . . . . . . . Part Schematics Acquired 1 | . . . . 1 . . Parts Built . | . . . . . . . Authchips . | . . . . . . . Time . | . . . . . . . Total Part Build Rating . | . . . . . . . Part Studies Acquired . | . . . . . . . Parts Repaired . | . . . . . . . Time . | . . . . . . . Parts Recycled . | . . . . . . . Recycled Matter . | . . . . . . . Retrieved Matter . | . . . . . . . Retrieved Components . | . . . . . . . Parts Scanalyzed . | . . . . . . . Part Schematics Acquired . | . . . . . . . Parts Damaged . | . . . . . . . Bothacking | -11 -10 -9 -8 -8 -7 -7 ------------ Run | Yrd Mat Mat Mat Sto Fac Low Used RIF Installer . | . . . . . . . Robots Hacked . | . . . . . . . Non-combat . | . . . . . . . Combat . | . . . . . . . Robot Hacks Applied . | . . . . . . . Relay Couplers Released . | . . . . . . . Fabnet Peak Effective % . | . . . . . . . Robots Rewired . | . . . . . . . Allies Hacked 1 | . . . . . 1 . Hacks Repelled . | . . . . . . . Allies | -11 -10 -9 -8 -8 -7 -7 -------- Run | Yrd Mat Mat Mat Sto Fac Low Total Allies 10 | . . . . 10 . . Largest Group 10 | . . . . 10 4 . Highest-Rated Group 173 | . . . . 173 77 . Highest-Rated Ally 29 | . . . . 29 29 . Total Orders . | . . . . . . . Ally Attacks 150 | . . . . 92 58 . Total Damage 1703 | . . . . 1028 675 . Kills 22 | . . . . 16 6 . Allies Corrupted . | . . . . . . . Allies Melted . | . . . . . . . Intel | -11 -10 -9 -8 -8 -7 -7 ------- Run | Yrd Mat Mat Mat Sto Fac Low Active Infowar (turns) . | . . . . . . . Robot Analysis Total 1 | . 1 . . . . . Derelict Logs Recovered . | . . . . . . . Drone Launches . | . . . . . . . Drone Recoveries . | . . . . . . . Exploration | -11 -10 -9 -8 -8 -7 -7 ------------- Run | Yrd Mat Mat Mat Sto Fac Low Turns Passed 2782 | 90 378 217 269 964 387 477 Spaces Moved 1618 | 52 178 212 118 523 212 323 Core 125 | 7 . . 1 . . 117 Treads 1183 | 45 178 5 14 523 212 206 Legs . | . . . . . . . Wheels . | . . . . . . . Hover 295 | . . 207 88 . . . Flight 15 | . . . 15 . . . Fastest Speed 50 | 50 160 56 116 155 155 50 Average Speed 136 | 145 160 58 154 157 157 120 Slowest Speed 360 | 160 160 160 360 160 158 200 Overloaded Moves . | . . . . . . . Propulsion Burnouts . | . . . . . . . Robots Hopped . | . . . . . . . Potential Cave-ins . | . . . . . . . Cave-ins Triggered . | . . . . . . . Exploration Rate (%) 24 | 5 23 16 14 53 4 58 Regions Visited 6 Branch Regions 2 Pre-discovered Areas 1 | . . . . 1 . . Known Exits Taken 2 | . 1 1 . . . . Unknown Exits Taken 4 | 1 . . 1 1 1 . Scrap Searched 1 | . . . . . . 1 Spaces Dug . | . . . . . . . Terrain Destroyed 23 | . . . 7 10 2 4 Melee . | . . . . . . . Projectile 16 | . . . . 10 2 4 AOE 7 | . . . 7 . . . Terrain Rammed . | . . . . . . . Walls Destroyed . | . . . . . . . Machines Disabled . | . . . . . . . Actions | -11 -10 -9 -8 -8 -7 -7 --------- Run | Yrd Mat Mat Mat Sto Fac Low Total 1988 | 67 217 280 185 638 241 360 Wait 131 | . . 35 34 59 . 3 Move 1612 | 51 177 211 117 522 211 323 Hop . | . . . . . . . Pick Up 52 | 10 5 7 8 14 7 1 Fast Attach . | . . . . . . . Attach 32 | 6 1 2 8 5 5 5 Detach . | . . . . . . . Swap 18 | . 1 3 3 10 1 . Drop 26 | . . 6 2 13 4 1 Fire 94 | . 28 14 7 13 12 20 Melee 5 | . . . . . . 5 Ram 10 | . . 2 6 . . 2 Kick . | . . . . . . . Crush 8 | . 5 . . 2 1 . Escape Stasis . | . . . . . . . Rewire . | . . . . . . . Trap . | . . . . . . . Miscellaneous . | . . . . . . . Route ------- -11/Scrapyard -10/Materials -9/Materials -8/Materials -8/Storage -7/Factory -7/Lower Caves History --------- Turn | Location | Event 21 | -11/Scrapyard | Discovered new exit (range 14) 91 | -11/Scrapyard | Entered Materials 318 | -10/Materials | Build established: Mutant 445 | -10/Materials | Discovered new exit (range 16) 467 | -10/Materials | Identified exit to Materials 469 | -10/Materials | Entered another Materials area 469 | -9/Materials | Evolved 2 slots: Power x1, Utility x1 684 | -9/Materials | Discovered new exit (range 3) 685 | -9/Materials | Identified exit to Materials 686 | -9/Materials | Entered another Materials area 686 | -8/Materials | Evolved 2 slots: Propulsion x1, Weapon x1 888 | -8/Materials | Lost 5 parts (2n1u2w) 893 | -8/Materials | Discovered new exit (range 16) 955 | -8/Materials | Entered Storage 1140 | -8/Storage | Assisted by bots powering up and referring to "LRC-V3" 1417 | -8/Storage | Build established: Commander-Tank 1624 | -8/Storage | Learned location of Armory (-3) 1857 | -8/Storage | Discovered new exit (range 15) 1919 | -8/Storage | Entered Factory 1919 | -7/Factory | Accompanied by 4 allies 1919 | -7/Factory | Evolved 2 slots: Propulsion x1, Utility x1 2278 | -7/Factory | Discovered new exit (range 12) 2304 | -7/Factory | Lost 3 allies 2306 | -7/Factory | Entered Lower Caves 2586 | -7/Lower Caves | Spotted B-75 Beast 2617 | -7/Lower Caves | Build established: Scavenger-Tank 2670 | -7/Lower Caves | Attracted the attention of an 0b10 checkpoint 2707 | -7/Lower Caves | Core integrity fell below 50% 2726 | -7/Lower Caves | Core integrity fell below 20% 2756 | -7/Lower Caves | Lost 14 parts (1p3n4u6w) 2783 | -7/Lower Caves | Destroyed by S-27 Virus with Autogun Last Messages --------------- Autogun fries itself beyond repair. Acquired 59 matter. Autogun fries itself beyond repair. VTOL Module fries itself beyond repair. Critical hit (Smash). Mni. Assault Cannon destroyed. Hacking Suite destroyed. System corrupted by crushing effect (+3). System corrupted by crushing effect (+1). Lgt. Nuclear Core fries itself beyond repair. System corrupted: Component data lost. Axe destroyed. System corrupted by crushing effect (+1). S-27 Virus system corrupted by crushing effect. VTOL Module fries itself beyond repair. Knocked back. System corrupted: Matter fused (-8). Acquired 9 matter. Acquired 8 matter. Slammed into S-27 Virus. Map ----- +----------------------------------------------------+ | ?????????????????????????????????????????????????? | | ?????????????????????????????????????????????????? | | ?????????????????????????????????????????????????? | | ?????????????????????????????????????????????????? | | ?????????????????????????????????????????????????? | | ?????????????????????????????????????????????????? | | ?????????????????????????????????????????????????? | | ??????????????????????????????? ????????????????? | | ??????????????????????????????# ????????????????? | | ??????????????????????????? ##$ ????????????????? | | ??????????????????????????? ##??????? ??????? | | ???????????????????????????# ###???? ?????? | | ???????????????????????##### #???? #?????? | | ???????????????????????# ??? ??????? | | ???????????????????????# #### ???????? | | ???????????????????????# # ????????? | | ??????????????????????## ## ?????????? | | ??????????????????????# ? ## #?????????? | | ??????????????????????? #??#"" ## ###???????? | | ??????????????????????? #??# ## #???????? | | ???????????????????????# #?##" # #???????? | | ???????????????????????# #?#" " #???????? | | ???????????????????##??#$ #?#" ####????? | | ???????????????????# ## ### #????? | | ???????????????????# ## ; ## ###### | | ???????????????????# @ % ### ## | | ???????????????????# %s ##?# ##### | | ???????????????????## #######??####???######### | | ????????????????????#####????????????????????????? | | ?????????????????????????????????????????????????? | | ?????????????????????????????????????????????????? | | ?????????????????????????????????????????????????? | | ?????????????????????????????????????????????????? | | ?????????????????????????????????????????????????? | | ?????????????????????????????????????????????????? | | ?????????????????????????????????????????????????? | | ?????????????????????????????????????????????????? | | ?????????????????????????????????????????????????? | | ?????????????????????????????????????????????????? | | ?????????????????????????????????????????????????? | | ?????????????????????????????????????????????????? | | ?????????????????????????????????????????????????? | | ?????????????????????????????????????????????????? | | ?????????????????????????????????????????????????? | | | | | | | | | | | | | +----------------------------------------------------+ Best States ------------- Heat Dissipation 41 Energy Generation 23 Energy Capacity 450 Matter Stores 450 Matter Capacity 450 Sight Range 16 Terrain Scan Density 85 EM Shielding 2 Armor Coverage 300 Resistance: TH 10 Evasion (%) 53 Recoil Reduction 4 Particle Charging 15 Offensive Hacking 10 Item Schematics ----------------- Thermal Shield | -8/Storage | Hacked Robot Schematics ------------------ None Fabricated ------------ Nothing Repaired ---------- Nothing Studied --------- None Alien Tech Used ----------------- None Achievements -------------- None Challenges ------------ None Game ------ Seed SupersonicSuperdenseWand Manual? 0 Play Time 00:52:04 Cumulative 19.2 hours Start 2026.02.21 @ 07:46:04 End 2026.02.21 @ 16:01:01 Sessions 3 Manual Loads 0 Difficulty Rogue Special Mode None Game No. 34 Rogue 34 Adventurer 0 Explorer 0 Win Type - Total 0 Types 0/0/0/0/0/0/0/0/0/0 Lore% 9 Gallery% 19 Achievement% 12 Wizard Run 0 Options --------- Layout 1 ASCII 0 Keyboard 0 Movement Numpad Keybinds 0 Fullscreen 1 Font 32/SmallcapsGlow Map View 50x35 Zoom Use 0% Tactical HUD 0 Map Filters NONE Filters NONE Steam 1 RUN: 380d3f3c-4f8e-47b4-a6ec-00305fcef47f